fUST/lending_fUST_20250610
["ID","MTS","AMOUNT","RATE_DAILY","PERIOD"]
[365137420,1749484947848,22298.74,0.00024669,60]
[365137421,1749484951589,200.0,0.00023648,120]
[365137423,1749485071101,200.0,0.00023576,120]
[365137425,1749485132475,200.0,0.00023771,120]
[365137432,1749485251300,200.0,0.00023773,120]
[365137434,1749485272225,161.822841,0.00013699,2]
[365137458,1749485432505,-518.7636901,0.00018343,2]
[365137459,1749485432517,-745.66726665,0.00018343,2]
[365137460,1749485432590,-3735.56904325,0.00018343,2]
[365137461,1749485432599,-961.87458433,0.00018343,2]
[365137463,1749485438385,-15685.23481421,0.00018332,2]
[365137464,1749485438396,-4038.12541567,0.00018343,2]
[365137465,1749485438406,-5000.0,0.00018343,2]
[365137466,1749485438417,-5000.0,0.00018343,2]
[365137467,1749485438427,-5000.0,0.00018343,2]
[365137468,1749485438438,-169.87326129,0.00019712,2]
[365137469,1749485438448,-500.0,0.00019811,2]
[365137470,1749485438461,-500.0,0.00019811,2]
[365137471,1749485438469,-500.0,0.00019811,2]
[365137472,1749485438479,-500.0,0.00019811,2]
[365137473,1749485438489,-500.0,0.00019811,2]
[365137474,1749485438499,-500.0,0.00019811,2]
[365137475,1749485438508,-369.01325667,0.00019811,2]
[365137476,1749485438516,-500.0,0.00019811,2]
[365137477,1749485438525,-516.21225328,0.00019811,2]
[365137478,1749485438536,-500.0,0.00019811,2]
[365137479,1749485438545,-560.29609156,0.00019811,2]
[365137480,1749485438555,-500.0,0.00019811,2]
[365137481,1749485438564,-412.9794404,0.00019811,2]
[365137482,1749485438572,-500.0,0.00019811,2]
[365137483,1749485438581,-354.96729631,0.00019811,2]
[365137484,1749485438589,-500.0,0.00019811,2]
[365137485,1749485438598,-500.0,0.00019811,2]
[365137486,1749485438607,-500.0,0.00019811,2]
[365137487,1749485438616,-500.0,0.00019811,2]
[365137488,1749485438624,-500.0,0.00019811,2]
[365137489,1749485438633,-500.0,0.00019811,2]
[365137490,1749485438642,-500.0,0.00019811,2]
[365137491,1749485438650,-500.0,0.00019817,2]
[365137492,1749485438659,-500.0,0.00019817,2]
[365137493,1749485438667,-500.0,0.00019817,2]
[365137494,1749485438673,-500.0,0.00019817,2]
[365137495,1749485438681,-500.0,0.00019817,2]
[365137496,1749485438687,-500.0,0.00019817,2]
[365137497,1749485438695,-500.0,0.00019817,2]
[365137498,1749485438701,-500.0,0.00019817,2]
[365137499,1749485438709,-500.0,0.00019817,2]
[365137500,1749485438718,-500.0,0.00019817,2]
[365137501,1749485438724,-500.0,0.00019817,2]
[365137502,1749485438731,-498.09061439,0.00019817,2]
[365137503,1749485438738,-791.33090245,0.000199,2]
[365137504,1749485438745,-791.33090228,0.00020072,2]
[365137505,1749485438754,-289.117,0.00020228,2]
[365137506,1749485438762,-791.33090228,0.00020245,2]
[365137507,1749485438769,-791.33090228,0.00020417,3]
[365137508,1749485438778,-791.33090228,0.0002059,3]
[365137509,1749485438785,-791.33090228,0.00020762,3]
[365137510,1749485438792,-170.661557,0.00020905,2]
[365137511,1749485438799,-791.33090228,0.00020934,4]
[365137512,1749485438808,-659.71,0.00021018,2]
[365137513,1749485438816,-460.0,0.00021095,4]
[365137514,1749485438825,-565.95,0.00021095,4]
[365137515,1749485438833,-460.0,0.00021095,4]
[365137516,1749485438840,-420.0,0.00021095,4]
[365137517,1749485438847,-1234.57,0.00021095,4]
[365137518,1749485438854,-2590.19,0.00021095,4]
[365137519,1749485438861,-1789.41,0.00021095,4]
[365137520,1749485438871,-420.0,0.00021095,4]
[365137521,1749485438881,-2800.86,0.00021095,4]
[365137522,1749485438891,-460.0,0.00021095,4]
[365137523,1749485438901,-888.43,0.00021095,4]
[365137524,1749485438910,-460.0,0.00021095,4]
[365137525,1749485438920,-478.55,0.00021095,4]
[365137526,1749485438929,-460.0,0.00021095,4]
[365137527,1749485438939,-440.0,0.00021095,4]
[365137528,1749485438948,-460.0,0.00021095,4]
[365137529,1749485438958,-460.0,0.00021095,4]
[365137530,1749485438968,-460.0,0.00021095,4]
[365137531,1749485438978,-1581.45,0.00021095,4]
[365137532,1749485438987,-460.0,0.00021095,4]
[365137533,1749485438997,-1242.6,0.00021095,4]
[365137534,1749485439007,-440.0,0.00021095,4]
[365137535,1749485439017,-460.0,0.00021095,4]
[365137536,1749485439026,-460.0,0.00021095,4]
[365137537,1749485439035,-501.28,0.00021095,4]
[365137538,1749485439044,-2485.47,0.00021095,4]
[365137539,1749485439053,-460.0,0.00021095,4]
[365137540,1749485439062,-8104.65,0.00021095,4]
[365137541,1749485439072,-440.0,0.00021095,4]
[365137542,1749485439081,-2368.21,0.00021095,4]
[365137543,1749485439091,-508.39,0.00021095,4]
[365137544,1749485439099,-1073.21,0.00021095,4]
[365137545,1749485439109,-420.0,0.00021095,4]
[365137546,1749485439118,-791.33090228,0.00021107,4]
[365137547,1749485439127,-791.33090228,0.00021279,5]
[365137548,1749485439136,-500.0,0.00021366,2]
[365137549,1749485439144,-500.0,0.00021366,2]
[365137550,1749485439154,-500.0,0.00021366,2]
[365137551,1749485439164,-500.0,0.00021366,2]
[365137552,1749485439174,-500.0,0.00021366,2]
[365137553,1749485439183,-500.0,0.00021366,2]
[365137554,1749485439191,-500.0,0.00021366,2]
[365137555,1749485439200,-500.0,0.00021366,2]
[365137556,1749485439209,-301.72386843,0.00021366,2]
[365137557,1749485439218,-500.0,0.00021366,2]
[365137558,1749485439226,-500.0,0.00021366,2]
[365137559,1749485439236,-508.69808389,0.00021366,2]
[365137560,1749485439246,-500.0,0.00021366,2]
[365137561,1749485439258,-500.0,0.00021366,2]
[365137562,1749485439267,-500.0,0.00021366,2]
[365137563,1749485439277,-607.59540472,0.00021369,4]
[365137564,1749485439293,-565.95,0.00021369,4]
[365137565,1749485439302,-460.0,0.00021369,4]
[365137566,1749485439325,-1234.57,0.00021369,4]
[365137567,1749485439350,-2590.19,0.00021369,4]
[365137568,1749485439367,-1789.41,0.00021369,4]
[365137569,1749485439380,-2800.86,0.00021369,4]
[365137570,1749485439389,-888.43,0.00021369,4]
[365137571,1749485439399,-460.0,0.00021369,4]
[365137572,1749485439409,-478.55,0.00021369,4]
[365137573,1749485439419,-420.0,0.00021369,4]
[365137574,1749485439439,-460.0,0.00021369,4]
[365137575,1749485439449,-390.0,0.00021369,4]
[365137576,1749485439463,-460.0,0.00021369,4]
[365137577,1749485439474,-1581.45,0.00021369,4]
[365137578,1749485439484,-460.0,0.00021369,4]
[365137579,1749485439496,-1242.6,0.00021369,4]
[365137580,1749485439506,-420.0,0.00021369,4]
[365137581,1749485439515,-420.0,0.00021369,4]
[365137582,1749485439525,-501.28,0.00021369,4]
[365137583,1749485439536,-2485.47,0.00021369,4]
[365137584,1749485439546,-460.0,0.00021369,4]
[365137585,1749485439555,-6458.8738407,0.00021369,4]
[365137586,1749485439770,-299.88738122,0.00021369,4]
[365137587,1749485439862,-817.9200025,0.00021369,4]
[365137589,1749485439874,-527.96877558,0.00021369,4]
[365137591,1749485439884,-980.7387828,0.00021369,4]
[365137593,1749485439895,-300.0,0.00021369,4]
[365137595,1749485439905,-1087.4712172,0.00021369,4]
[365137597,1749485439914,-508.39,0.00021369,4]
[365137599,1749485439923,-1073.21,0.00021369,4]
[365137601,1749485439931,-573.126752,0.0002137,2]
[365137603,1749485439940,-158.7201836,0.0002137,2]
[365137605,1749485439948,-153.0,0.0002137,2]
[365137607,1749485439958,-353.3983644,0.0002137,2]
[365137609,1749485439968,-1145.9646584,0.0002137,2]
[365137611,1749485439978,-153.0,0.0002137,2]
[365137613,1749485439988,-176.7945794,0.0002137,2]
[365137614,1749485440000,-158.7201836,0.0002137,2]
[365137615,1749485440010,-573.244939,0.0002137,2]
[365137616,1749485440020,-176.7945791,0.0002137,2]
[365137617,1749485440030,-158.7201836,0.0002137,2]
[365137618,1749485440039,-573.244939,0.0002137,2]
[365137619,1749485440048,-153.0,0.0002137,2]
[365137620,1749485440059,-158.7201836,0.0002137,2]
[365137621,1749485440070,-573.244939,0.0002137,2]
[365137622,1749485440080,-176.7945793,0.0002137,2]
[365137623,1749485440090,-153.0,0.0002137,2]
[365137624,1749485440099,-158.7201836,0.0002137,2]
[365137625,1749485440109,-573.244939,0.0002137,2]
[365137626,1749485440118,-176.7945791,0.0002137,2]
[365137627,1749485440128,-459.4591812,0.0002137,2]
[365137628,1749485440138,-153.0,0.0002137,2]
[365137631,1749485440147,-376.1639127,0.0002137,2]
[365137633,1749485440157,-791.33090228,0.00021452,5]
[365137635,1749485440167,-791.33090228,0.00021624,5]
[365137637,1749485440177,-565.95,0.00021643,4]
[365137639,1749485440186,-460.0,0.00021643,4]
[365137641,1749485440197,-1234.57,0.00021643,4]
[365137643,1749485440206,-2590.19,0.00021643,4]
[365137645,1749485440216,-1789.41,0.00021643,4]
[365137647,1749485440225,-2800.86,0.00021643,4]
[365137649,1749485440234,-888.43,0.00021643,4]
[365137650,1749485440246,-460.0,0.00021643,4]
[365137651,1749485440255,-478.55,0.00021643,4]
[365137652,1749485440265,-373.52,0.00021643,4]
[365137653,1749485440274,-460.0,0.00021643,4]
[365137654,1749485440283,-1581.45,0.00021643,4]
[365137655,1749485440293,-460.0,0.00021643,4]
[365137656,1749485440303,-1242.6,0.00021643,4]
[365137657,1749485440312,-501.28,0.00021643,4]
[365137658,1749485440321,-2485.47,0.00021643,4]
[365137659,1749485440331,-460.0,0.00021643,4]
[365137660,1749485440340,-8104.65,0.00021643,4]
[365137661,1749485440350,-2368.21,0.00021643,4]
[365137662,1749485440359,-508.39,0.00021643,4]
[365137663,1749485440369,-1073.21,0.00021643,4]
[365137664,1749485440379,-274.08923749,0.00021726,2]
[365137665,1749485440389,-791.33090228,0.00021797,6]
[365137666,1749485440399,-181.89148489,0.00021817,2]
[365137667,1749485440409,-420.0,0.00021916,4]
[365137668,1749485440419,-440.0,0.00021916,4]
[365137669,1749485440428,-440.0,0.00021916,4]
[365137670,1749485440438,-460.0,0.00021916,4]
[365137671,1749485440448,-460.0,0.00021916,4]
[365137672,1749485440463,-460.0,0.00021916,4]
[365137673,1749485440473,-704.48,0.00021916,4]
[365137674,1749485440483,-681.82,0.00021916,4]
[365137675,1749485440494,-460.0,0.00021916,4]
[365137676,1749485440504,-460.0,0.00021916,4]
[365137677,1749485440514,-460.0,0.00021916,4]
[365137678,1749485440524,-252.25409046,0.00021916,4]
[365137679,1749485440539,-259.46590954,0.00021916,4]
[365137680,1749485440548,-460.0,0.00021916,4]
[365137681,1749485440557,-566.01,0.00021916,4]
[365137682,1749485440567,-1155.69,0.00021916,4]
[365137683,1749485440577,-440.0,0.00021916,4]
[365137685,1749485440586,-460.0,0.00021916,4]
[365137687,1749485440596,-420.0,0.00021916,4]
[365137688,1749485440606,-460.0,0.00021916,4]
[365137689,1749485440616,-1796.03,0.00021916,4]
[365137690,1749485440625,-714.82,0.00021916,4]
[365137691,1749485440635,-430.0,0.00021916,2]
[365137692,1749485440644,-460.0,0.00021916,4]
[365137693,1749485440654,-440.0,0.00021916,4]
[365137694,1749485440664,-460.0,0.00021916,4]
[365137695,1749485440674,-460.0,0.00021916,4]
[365137696,1749485440683,-878.32,0.00021916,4]
[365137697,1749485440693,-485.94,0.00021916,4]
[365137698,1749485440702,-622.79,0.00021916,4]
[365137699,1749485440712,-460.0,0.00021916,4]
[365137700,1749485440722,-400.17634307,0.00021916,4]
[365137701,1749485440731,-420.0,0.00021916,4]
[365137702,1749485440741,-440.0,0.00021916,4]
[365137703,1749485440751,-500.0,0.00021916,4]
[365137704,1749485440761,-527.22,0.00021916,4]
[365137705,1749485440771,-601.21,0.00021916,4]
[365137706,1749485440781,-460.0,0.00021916,4]
[365137707,1749485440791,-460.0,0.00021916,4]
[365137708,1749485440801,-460.0,0.00021916,4]
[365137709,1749485440811,-1572.22,0.00021916,4]
[365137710,1749485440821,-460.0,0.00021916,4]
[365137711,1749485440831,-460.0,0.00021916,4]
[365137712,1749485440841,-460.0,0.00021916,4]
[365137713,1749485440850,-355.60490511,0.00021916,4]
[365137714,1749485440860,-1200.51,0.00021916,4]
[365137715,1749485440870,-460.0,0.00021916,4]
[365137716,1749485440879,-461.82,0.00021916,4]
[365137717,1749485440889,-230.93154517,0.00021916,4]
[365137718,1749485440899,-460.0,0.00021916,4]
[365137719,1749485440909,-2821.76,0.00021916,4]
[365137720,1749485440919,-929.14,0.00021916,4]
[365137721,1749485440929,-3685.11,0.00021916,4]
[365137722,1749485440938,-192.97473504,0.00021917,4]
[365137723,1749485440948,-460.0,0.00021917,4]
[365137724,1749485440958,-420.0,0.00021917,4]
[365137725,1749485440967,-470.55,0.00021917,4]
[365137726,1749485440977,-277.87674849,0.00021917,4]
[365137727,1749485440987,-460.0,0.00021917,4]
[365137728,1749485440998,-251.88573251,0.00021917,4]
[365137729,1749485441011,-178.11426749,0.00021917,4]
[365137730,1749485441020,-502.20250663,0.00021917,4]
[365137731,1749485441030,-388.97794139,0.00021917,4]
[365137732,1749485441040,-420.0,0.00021917,4]
[365137733,1749485441049,-460.0,0.00021917,4]
[365137734,1749485441059,-300.0,0.00021917,4]
[365137735,1749485441068,-540.04018772,0.00021917,4]
[365137736,1749485441079,-460.0,0.00021917,4]
[365137737,1749485441088,-420.0,0.00021917,4]
[365137738,1749485441097,-333.04254253,0.00021917,4]
[365137739,1749485441107,-467.73,0.00021917,2]
[365137740,1749485441116,-460.0,0.00021917,4]
[365137741,1749485441126,-460.0,0.00021917,4]
[365137742,1749485441135,-565.95,0.00021917,4]
[365137743,1749485441145,-460.0,0.00021917,4]
[365137744,1749485441155,-1037.53311925,0.00021917,4]
[365137745,1749485441167,-197.03688075,0.00021917,4]
[365137746,1749485441177,-2590.19,0.00021917,4]
[365137747,1749485441186,-1789.41,0.00021917,4]
[365137748,1749485441197,-2800.86,0.00021917,4]
[365137749,1749485441207,-888.43,0.00021917,4]
[365137750,1749485441216,-460.0,0.00021917,4]
[365137751,1749485441226,-478.55,0.00021917,4]
[365137752,1749485441235,-460.0,0.00021917,4]
[365137753,1749485441246,-1581.45,0.00021917,4]
[365137754,1749485441256,-460.0,0.00021917,4]
[365137755,1749485441266,-1242.6,0.00021917,4]
[365137756,1749485441276,-501.28,0.00021917,4]
[365137757,1749485441285,-2485.47,0.00021917,4]
[365137758,1749485441295,-460.0,0.00021917,4]
[365137759,1749485441306,-8104.65,0.00021917,4]
[365137760,1749485441315,-2368.21,0.00021917,4]
[365137761,1749485441325,-508.39,0.00021917,4]
[365137762,1749485441334,-1073.21,0.00021917,4]
[365137763,1749485441345,-791.33090228,0.00021969,6]
[365137764,1749485441355,-160.0,0.00022,2]
[365137765,1749485441365,-155.09884248,0.00022013,2]
[365137766,1749485441374,-5877.77562994,0.00022091,2]
[365137767,1749485441384,-500.0,0.000221,2]
[365137768,1749485441394,-791.33090228,0.00022141,6]
[365137769,1749485441404,-542.67,0.00022167,3]
[365137770,1749485441413,-500.0,0.00022173,2]
[365137771,1749485441423,-500.0,0.00022173,2]
[365137772,1749485441434,-500.0,0.00022173,2]
[365137773,1749485441444,-361.78,0.00022181,3]
[365137774,1749485441455,-180.89,0.00022181,3]
[365137775,1749485441466,-460.0,0.0002219,4]
[365137776,1749485441475,-460.0,0.0002219,4]
[365137777,1749485441485,-460.0,0.0002219,4]
[365137778,1749485441495,-704.48,0.0002219,4]
[365137779,1749485441506,-681.82,0.0002219,4]
[365137780,1749485441516,-368.44474859,0.0002219,4]
[365137781,1749485441526,-460.0,0.0002219,4]
[365137782,1749485441538,-400.0,0.0002219,4]
[365137783,1749485441548,-511.72,0.0002219,4]
[365137784,1749485441558,-580.0,0.0002219,4]
[365137785,1749485441568,-566.01,0.0002219,4]
[365137786,1749485441579,-1155.69,0.0002219,4]
[365137787,1749485441588,-460.0,0.0002219,4]
[365137788,1749485441598,-420.0,0.0002219,4]
[365137789,1749485441608,-1796.03,0.0002219,4]
[365137790,1749485441619,-714.82,0.0002219,4]
[365137791,1749485441628,-410.0,0.0002219,4]
[365137792,1749485441638,-460.0,0.0002219,4]
[365137793,1749485441647,-344.70909493,0.0002219,4]
[365137794,1749485441657,-878.32,0.0002219,4]
[365137795,1749485441667,-485.94,0.0002219,4]
[365137796,1749485441676,-622.79,0.0002219,4]
[365137797,1749485441687,-563.11603451,0.0002219,4]
[365137798,1749485441696,-527.22,0.0002219,4]
[365137799,1749485441706,-601.21,0.0002219,4]
[365137800,1749485441715,-460.0,0.0002219,4]
[365137801,1749485441725,-390.0,0.0002219,4]
[365137802,1749485441734,-460.0,0.0002219,4]
[365137803,1749485441744,-1572.22,0.0002219,4]
[365137804,1749485441754,-460.0,0.0002219,4]
[365137805,1749485441765,-460.0,0.0002219,4]
[365137806,1749485441780,-460.0,0.0002219,4]
[365137807,1749485441791,-1200.51,0.0002219,4]
[365137808,1749485441802,-390.0,0.0002219,4]
[365137809,1749485441811,-461.82,0.0002219,4]
[365137810,1749485441821,-460.0,0.0002219,4]
[365137811,1749485441830,-2821.76,0.0002219,4]
[365137812,1749485441840,-929.14,0.0002219,4]
[365137813,1749485441849,-3685.11,0.0002219,4]
[365137814,1749485441858,-380.0,0.00022191,4]
[365137815,1749485441867,-470.55,0.00022191,4]
[365137816,1749485441877,-567.41408605,0.00022191,4]
[365137817,1749485441886,-460.0,0.00022191,4]
[365137818,1749485441896,-460.0,0.00022191,4]
[365137819,1749485441906,-467.73,0.00022191,2]
[365137820,1749485441915,-460.0,0.00022191,4]
[365137821,1749485441924,-400.0,0.00022191,4]
[365137822,1749485441934,-565.95,0.00022191,4]
[365137823,1749485441943,-460.0,0.00022191,4]
[365137824,1749485441952,-1234.57,0.00022191,4]
[365137825,1749485441962,-1920.24450146,0.00022191,4]
[365137826,1749485442006,-669.94549854,0.00022191,4]
[365137827,1749485442015,-1290.5395996,0.00022191,4]
[365137828,1749485442194,-498.8704004,0.00022191,4]
[365137829,1749485442203,-2800.86,0.00022191,4]
[365137830,1749485442212,-888.43,0.00022191,4]
[365137831,1749485442221,-460.0,0.00022191,4]
[365137832,1749485442229,-478.55,0.00022191,4]
[365137833,1749485442239,-460.0,0.00022191,4]
[365137834,1749485442249,-1581.45,0.00022191,4]
[365137835,1749485442257,-460.0,0.00022191,4]
[365137836,1749485442266,-1242.6,0.00022191,4]
[365137837,1749485442275,-501.28,0.00022191,4]
[365137838,1749485442284,-2485.47,0.00022191,4]
[365137839,1749485442293,-460.0,0.00022191,4]
[365137840,1749485442302,-8104.65,0.00022191,4]
[365137841,1749485442311,-2368.21,0.00022191,4]
[365137842,1749485442322,-508.39,0.00022191,4]
[365137843,1749485442333,-1073.21,0.00022191,4]
[365137844,1749485442342,-153.0,0.00022192,2]
[365137845,1749485442352,-281.31911978,0.000222,69]
[365137846,1749485442362,-281.31911977,0.000222,69]
[365137847,1749485442371,-281.31911977,0.000222,69]
[365137848,1749485442381,-568.37157463,0.00022231,2]
[365137849,1749485442390,-206.0,0.0002227,2]
[365137850,1749485442400,-160.0,0.00022273,2]
[365137851,1749485442410,-160.0,0.00022273,2]
[365137852,1749485442420,-160.0,0.00022273,2]
[365137853,1749485442430,-834.7738823,0.00022273,2]
[365137854,1749485442439,-160.0,0.00022273,2]
[365137855,1749485442449,-842.5625,0.00022273,2]
[365137856,1749485442462,-213.08899333,0.00022273,2]
[365137857,1749485442471,-229.64266968,0.00022273,2]
[365137858,1749485442481,-424.05420114,0.00022273,2]
[365137859,1749485442492,-160.0,0.00022273,2]
[365137860,1749485442502,-160.0,0.00022273,2]
[365137861,1749485442512,-160.0,0.00022273,2]
[365137862,1749485442522,-151.0,0.000223,2]
[365137863,1749485442532,-154.45857055,0.000223,2]
[365137864,1749485442541,-791.33090228,0.00022314,7]
[365137865,1749485442551,-151.0,0.00022327,2]
[365137866,1749485442561,-181.89148489,0.00022338,2]
[365137867,1749485442570,-151.0,0.00022355,2]
[365137868,1749485442580,-151.0,0.00022382,2]
[365137869,1749485442590,-151.0,0.0002241,2]
[365137870,1749485442600,-245.0,0.00022437,2]
[365137871,1749485442609,-460.0,0.00022464,4]
[365137872,1749485442619,-460.0,0.00022464,4]
[365137873,1749485442628,-460.0,0.00022464,4]
[365137874,1749485442637,-704.48,0.00022464,4]
[365137875,1749485442647,-681.82,0.00022464,4]
[365137876,1749485442656,-360.0,0.00022464,4]
[365137877,1749485442665,-511.72,0.00022464,4]
[365137878,1749485442674,-566.01,0.00022464,4]
[365137879,1749485442683,-1155.69,0.00022464,4]
[365137880,1749485442693,-460.0,0.00022464,4]
[365137881,1749485442702,-1796.03,0.00022464,4]
[365137882,1749485442712,-714.82,0.00022464,4]
[365137884,1749485442722,-507.90953021,0.00022464,4]
[365137885,1749485442733,-878.32,0.00022464,4]
[365137886,1749485442743,-485.94,0.00022464,4]
[365137887,1749485442752,-622.79,0.00022464,4]
[365137888,1749485442761,-527.22,0.00022464,4]
[365137890,1749485442771,-601.21,0.00022464,4]
[365137892,1749485442781,-460.0,0.00022464,4]
[365137893,1749485442790,-460.0,0.00022464,4]
[365137895,1749485442800,-1572.22,0.00022464,4]
[365137897,1749485442809,-360.0,0.00022464,4]
[365137899,1749485442818,-460.0,0.00022464,4]
[365137901,1749485442827,-460.0,0.00022464,4]
[365137903,1749485442836,-1200.51,0.00022464,4]
[365137905,1749485442844,-461.82,0.00022464,4]
[365137907,1749485442852,-460.0,0.00022464,4]
[365137909,1749485442861,-2821.76,0.00022464,4]
[365137911,1749485442869,-929.14,0.00022464,4]
[365137912,1749485442878,-370.48793127,0.00022464,4]
[365137957,1749485446458,-566.5291037,0.00019605,2]
[365137959,1749485446469,-169.87326127,0.00020522,2]
[365137962,1749485446479,-706.59763503,0.00022464,4]
[365137964,1749485446492,-1419.81231565,0.00022464,4]
[365137966,1749485446505,-1188.21211805,0.00022464,4]
[365137968,1749485446514,-453.30948662,0.00022465,2]
[365137970,1749485446525,-470.55,0.00022465,4]
[365137972,1749485446535,-460.0,0.00022465,4]
[365137974,1749485446546,-460.0,0.00022465,4]
[365137976,1749485446556,-400.0,0.00022465,2]
[365137978,1749485446565,-400.0,0.00022465,2]
[365137980,1749485446575,-400.0,0.00022465,2]
[365137982,1749485446585,-467.73,0.00022465,2]
[365137984,1749485446595,-460.0,0.00022465,4]
[365137986,1749485446604,-565.95,0.00022465,4]
[365137988,1749485446614,-1234.57,0.00022465,4]
[365137990,1749485446623,-2590.19,0.00022465,4]
[365137992,1749485446632,-1789.41,0.00022465,4]
[365137994,1749485446642,-2800.86,0.00022465,4]
[365137996,1749485446651,-888.43,0.00022465,4]
[365137998,1749485446661,-460.0,0.00022465,4]
[365138000,1749485446671,-478.55,0.00022465,4]
[365138002,1749485446681,-460.0,0.00022465,4]
[365138004,1749485446692,-1581.45,0.00022465,4]
[365138006,1749485446702,-460.0,0.00022465,4]
[365138008,1749485446712,-1242.6,0.00022465,4]
[365138010,1749485446721,-501.28,0.00022465,4]
[365138012,1749485446731,-2485.47,0.00022465,4]
[365138014,1749485446740,-460.0,0.00022465,4]
[365138016,1749485446750,-8104.65,0.00022465,4]
[365138018,1749485446760,-2368.21,0.00022465,4]
[365138021,1749485446770,-508.39,0.00022465,4]
[365138022,1749485446780,-1073.21,0.00022465,4]
[365138024,1749485446789,-791.33090228,0.00022486,7]
[365138026,1749485446799,-206.0,0.0002256,2]
[365138028,1749485446808,-605.91054221,0.00022569,2]
[365138030,1749485446818,-207.4,0.00022641,2]
[365138032,1749485446827,-680.73743414,0.00022641,2]
[365138035,1749485446837,-449.45625511,0.00022648,2]
[365138037,1749485446846,-791.33090228,0.00022659,7]
[365138038,1749485446856,-747.31614601,0.00022721,2]
[365138041,1749485446868,-252.68385399,0.00022721,2]
[365138043,1749485446878,-1000.0,0.00022721,2]
[365138045,1749485446888,-1000.0,0.00022721,2]
[365138047,1749485446897,-460.0,0.00022738,4]
[365138049,1749485446906,-460.0,0.00022738,4]
[365138051,1749485446916,-460.0,0.00022738,4]
[365138053,1749485446925,-704.48,0.00022738,4]
[365138055,1749485446936,-511.72,0.00022738,4]
[365138057,1749485446946,-566.01,0.00022738,4]
[365138059,1749485446956,-1155.69,0.00022738,4]
[365138061,1749485446965,-460.0,0.00022738,4]
[365138063,1749485446975,-1796.03,0.00022738,4]
[365138065,1749485446985,-714.82,0.00022738,4]
[365138067,1749485446995,-878.32,0.00022738,4]
[365138069,1749485447005,-485.94,0.00022738,4]
[365138071,1749485447015,-622.79,0.00022738,4]
[365138073,1749485447023,-527.22,0.00022738,4]
[365138075,1749485447032,-601.21,0.00022738,4]
[365138078,1749485447041,-460.0,0.00022738,4]
[365138079,1749485447049,-460.0,0.00022738,4]
[365138082,1749485447058,-1572.22,0.00022738,4]
[365138084,1749485447070,-460.0,0.00022738,4]
[365138086,1749485447080,-460.0,0.00022738,4]
[365138088,1749485447090,-1200.51,0.00022738,4]
[365138090,1749485447099,-461.82,0.00022738,4]
[365138092,1749485447109,-460.0,0.00022738,4]
[365138094,1749485447118,-2821.76,0.00022738,4]
[365138096,1749485447128,-929.14,0.00022738,4]
[365138098,1749485447138,-3685.11,0.00022738,4]
[365138100,1749485447148,-470.55,0.00022739,4]
[365138102,1749485447158,-460.0,0.00022739,4]
[365138104,1749485447168,-460.0,0.00022739,4]
[365138106,1749485447177,-400.0,0.00022739,2]
[365138108,1749485447187,-467.73,0.00022739,2]
[365138110,1749485447196,-460.0,0.00022739,4]
[365138112,1749485447206,-565.95,0.00022739,4]
[365138114,1749485447216,-1234.57,0.00022739,4]